fUSD/lending_fUSD_20240909
["ID","MTS","AMOUNT","RATE_DAILY","PERIOD"]
[337581476,1725853838253,-668.26362144,0.00015,2]
[337581477,1725853838279,-581.05459879,0.00015,2]
[337581478,1725853838305,-2512.71029907,0.00015,2]
[337581479,1725853838329,-26612.30646997,0.00015,2]
[337581480,1725853838353,-1042.82955653,0.00015,2]
[337581481,1725853838376,-823.89638983,0.00015,2]
[337581482,1725853838401,-345.0,0.00015,2]
[337581483,1725853838419,-421.1066599,0.00015,2]
[337581484,1725853838431,-816.72247712,0.00015,2]
[337581485,1725853838443,-1284.68,0.00015,2]
[337581486,1725853838456,-319.8,0.00015,2]
[337581487,1725853838469,-1291.06,0.00015,2]
[337581488,1725853838482,-610831.03984079,0.00015,2]
[337581489,1725853838492,-208822.29189186,0.00015,2]
[337581490,1725853838503,-196742.06543969,0.00015,2]
[337581491,1725853838515,-16045.4338332,0.00015,2]
[337581492,1725853838528,-468.50164004,0.00015,2]
[337581493,1725853838541,-1659.66309036,0.00015,2]
[337581494,1725853838553,-867.57638522,0.00015,2]
[337581495,1725853838565,-880.16105896,0.00015,2]
[337581496,1725853838577,-453.30570109,0.00015,2]
[337581497,1725853838610,-894218.35985344,0.00015,2]
[337581498,1725853838621,-1433.91078519,0.00015,2]
[337581499,1725853838633,-622.21983407,0.00015,2]
[337581500,1725853838644,-3088.10000001,0.00015,2]
[337581501,1725853838655,-563.31326908,0.00015,2]
[337581502,1725853838667,-428.61941707,0.00015,2]
[337581504,1725853838682,-824.51259311,0.00015,2]
[337581506,1725853838694,-31337.85668036,0.00015,2]
[337581508,1725853838706,-58267.11034347,0.00015,2]
[337581510,1725853838717,-404.69724263,0.00015,2]
[337581511,1725853838729,-498.35828287,0.00015,2]
[337581513,1725853838741,-3161.98146989,0.00015,2]
[337581515,1725853838753,-5255.92241343,0.00015,2]
[337581517,1725853838765,-288.55661629,0.00015,2]
[337581520,1725853838781,-583.44794261,0.000149,2]
[337581522,1725853838793,-95.27451304,0.000149,2]
[337581524,1725853838802,-1671.10689631,0.00015,2]
[337581526,1725853838814,-584.643,0.00015,2]
[337581528,1725853838825,-878.52823666,0.00015,2]
[337581529,1725853838837,-263.42076256,0.00015,2]
[337581530,1725853838848,-13339.12631121,0.00015,2]
[337581531,1725853838860,-16225.01632046,0.00015,2]
[337581532,1725853838871,-32552.84912431,0.00015,2]
[337581533,1725853838883,-6912.47775104,0.00015,2]
[337581534,1725853838894,-58096.69761641,0.00015,2]
[337581535,1725853838906,-795.0000001,0.00015,2]
[337581536,1725853838918,-1306.63194,0.00015,2]
[337581537,1725853838929,-1784.78481243,0.00015,2]
[337581572,1725853841475,-103654.77600301,0.00015,2]
[337581573,1725853841488,-3014.50300993,0.00015,2]
[337581574,1725853841499,-1396.69046004,0.00015,2]
[337581575,1725853841510,-1387.96978456,0.00015,2]
[337581576,1725853841522,-345.865,0.00015,2]
[337581577,1725853841533,-1621.89478999,0.00015,2]
[337581578,1725853841545,-647.72611224,0.00015,2]
[337581579,1725853841557,-44179.61026134,0.00015,2]
[337581580,1725853841569,-2607.20000779,0.00015,2]
[337581581,1725853841580,-268488.46732053,0.00015,2]
[337581785,1725853846522,-103712.33097,0.00015,2]
[337581786,1725853846585,-18227.84187586,0.00015,2]
[337581797,1725854257343,152.21,0.00010959,2]
[337581798,1725854504797,351.47,0.00011851,2]
[337581859,1725855035628,2500.0,0.00025,60]
[337581860,1725855037446,-10747.0,0.000134,5]
[337581861,1725855037457,-150.0,0.00013488,2]
[337581862,1725855037468,-300.0,0.00013499,2]
[337581863,1725855037478,-188.14,0.00013514,2]
[337581864,1725855037489,-250.0,0.00013526,2]
[337581865,1725855037498,-1000.0,0.00013565,2]
[337581866,1725855037507,-168.76,0.00013597,2]
[337581867,1725855037517,-250.0,0.00013643,2]
[337581868,1725855037526,-250.0,0.00013643,2]
[337581869,1725855037536,-1250.0,0.000137,2]
[337581870,1725855037545,-23900.0,0.00013705,2]
[337581871,1725855037555,-166.47,0.00013769,2]
[337581872,1725855037565,-499.99,0.00013821,2]
[337581873,1725855037574,-200.0,0.00013832,2]
[337581874,1725855037584,-200.0,0.00013871,2]
[337581875,1725855037594,-185.88,0.00013881,2]
[337581876,1725855037603,-1414.77,0.000142,2]
[337581877,1725855037614,-931.0,0.000144,2]
[337581878,1725855037623,-353.7955507,0.000147,2]
[337581879,1725855037633,-2774.10493143,0.00014701,2]
[337581880,1725855037642,-339.36122781,0.00014713,2]
[337581881,1725855037652,-150.0,0.00014722,2]
[337581882,1725855037662,-2774.10493138,0.00014723,2]
[337581883,1725855037672,-2774.10493138,0.00014745,2]
[337581884,1725855037681,-2774.10493138,0.00014767,2]
[337581885,1725855037691,-2774.10493138,0.00014789,2]
[337581886,1725855037701,-37670.6946933,0.0001479,3]
[337581887,1725855037710,-2092.81637185,0.00014791,3]
[337581888,1725855037720,-420.0,0.00014796,2]
[337581889,1725855037729,-552.75268361,0.00014799,2]
[337581890,1725855037739,-150.0,0.00014799,2]
[337581891,1725855037749,-314392.37156284,0.000148,2]
[337581892,1725855037758,-185.88,0.00014807,2]
[337581893,1725855037768,-2774.10493138,0.00014812,2]
[337581894,1725855037777,-2092.81637185,0.00014814,3]
[337581895,1725855037787,-150.0,0.00014818,2]
[337581896,1725855037797,-2092.81637185,0.0001483,3]
[337581897,1725855037807,-2774.10493138,0.00014834,2]
[337581898,1725855037817,-2092.81637185,0.00014851,3]
[337581899,1725855037827,-2774.10493138,0.00014856,2]
[337581900,1725855037837,-2092.81637185,0.0001486,3]
[337581901,1725855037846,-4185.6327437,0.0001487,3]
[337581902,1725855037856,-2774.10493138,0.00014878,2]
[337581903,1725855037865,-2092.81637185,0.0001488,3]
[337581904,1725855037875,-4185.6327437,0.0001489,3]
[337581906,1725855037884,-157.31643425,0.00014898,2]
[337581908,1725855037893,-4546.94216423,0.000149,2]
[337581910,1725855037903,-162.14826699,0.000149,2]
[337581912,1725855037912,-177.32746702,0.000149,2]
[337581914,1725855037921,-1494.30717908,0.000149,2]
[337581915,1725855037931,-2774.10493138,0.000149,2]
[337581917,1725855037941,-955.94069651,0.000149,2]
[337581919,1725855037950,-339.36122781,0.000149,2]
[337581921,1725855037960,-150.0,0.00014901,2]
[337581923,1725855037970,-151.36511611,0.00014961,2]
[337581925,1725855037980,-500.0,0.00014973,2]
[337581926,1725855037990,-500.0,0.00014973,2]
[337581927,1725855038000,-12556.8982311,0.0001498,3]
[337581928,1725855038010,-152.0,0.00014987,3]
[337581929,1725855038019,-1241812.28890984,0.00015,2]
[337581943,1725855042995,-4443.87375774,0.00015,2]
[337581966,1725855834860,387.44,0.00011902,2]
[337581967,1725855926547,79662.90543535,0.00027,120]
[337581968,1725855937863,1987.56,0.00025,60]
[337581969,1725856032052,211.60432953,0.000123,2]
[337581973,1725856142032,-1193.121166,0.00012833,2]
[337581974,1725856142062,-500.0,0.00012973,2]
[337581975,1725856142090,-150.0,0.00012998,2]
[337581976,1725856142119,-243.26368636,0.00012999,2]
[337581977,1725856142147,-500.0,0.00012999,2]
[337581978,1725856142175,-500.0,0.00012999,2]
[337581979,1725856142202,-574.26391671,0.00012999,2]
[337581980,1725856142229,-500.0,0.00012999,2]
[337581981,1725856142256,-500.0,0.00012999,2]
[337581982,1725856142284,-500.0,0.00012999,2]
[337581983,1725856142312,-500.0,0.00012999,2]
[337581984,1725856142340,-500.0,0.00012999,2]
[337581985,1725856142369,-192.32013859,0.00012999,2]
[337581986,1725856142398,-500.0,0.00012999,2]
[337581987,1725856142426,-500.0,0.00012999,2]
[337581988,1725856142455,-404.77491191,0.00012999,2]
[337581989,1725856142488,-95.22508808,0.00012999,2]
[337581990,1725856142519,-7662.51873149,0.00013,2]
[337581991,1725856142564,-1802.81078247,0.00013,2]
[337582034,1725856231563,-555.90330277,0.00012898,2]
[337582045,1725856231621,-465.65120639,0.00012898,2]
[337582046,1725856231632,-539.47059194,0.00012898,2]
[337582047,1725856231643,-239.82180159,0.00012898,2]
[337582048,1725856231652,-226.1664,0.000129,2]
[337582049,1725856231661,-1008.47797742,0.000129,2]
[337582050,1725856231673,-479.69730655,0.000129,2]
[337582051,1725856231684,-392.21047941,0.000129,2]
[337582052,1725856231693,-23900.0,0.00012949,2]
[337582053,1725856231702,-500.0,0.00012973,2]
[337582054,1725856231711,-500.0,0.00012973,2]
[337582055,1725856231720,-150.72,0.0001299,2]
[337582056,1725856231729,-150.72,0.0001299,2]
[337582057,1725856231738,-150.72,0.0001299,2]
[337582058,1725856231747,-150.72,0.0001299,2]
[337582059,1725856231756,-150.72,0.0001299,2]
[337582060,1725856231767,-150.72,0.0001299,2]
[337582061,1725856231776,-150.72,0.0001299,2]
[337582062,1725856231787,-150.72,0.0001299,2]
[337582063,1725856231796,-172.53233676,0.00012999,2]
[337582064,1725856231805,-502.99554528,0.00012999,2]
[337582065,1725856231815,-150.0,0.00012999,2]
[337582066,1725856231824,-150.33610325,0.00012999,2]
[337582067,1725856231833,-179119.59316835,0.00013,2]
[337582068,1725856231845,-976.47953325,0.00013,2]
[337582069,1725856231856,-593407.21255181,0.00013,2]
[337582070,1725856231867,-17048.16193707,0.00013,2]
[337582071,1725856231878,-751.39001507,0.00013,2]
[337582072,1725856231889,-313.32554364,0.00013,2]
[337582073,1725856231900,-904.08234998,0.00013,2]
[337582074,1725856231911,-2759.15,0.00013,2]
[337582076,1725856231923,-2637.74911535,0.00013,2]
[337582078,1725856231935,-462.57098659,0.00013,2]
[337582081,1725856231957,-7395.11462827,0.00013,2]
[337582082,1725856231968,-619.14994573,0.00013,2]
[337582083,1725856231979,-327.85685687,0.00013,2]
[337582084,1725856231990,-770.43732791,0.00013,2]
[337582085,1725856232001,-6558.09753364,0.00013,2]
[337582086,1725856232012,-1926.93036806,0.00013,2]
[337582087,1725856232023,-1609.23617719,0.00013,2]
[337582088,1725856232034,-44036.33681106,0.00013,2]
[337582089,1725856232045,-1865.69249295,0.00013,2]
[337582090,1725856232056,-505.38615579,0.00013,2]
[337582091,1725856232069,-298.3,0.00013,2]
[337582092,1725856232080,-2481.20419989,0.00013,2]
[337582093,1725856232090,-503.88900716,0.00013,2]
[337582094,1725856232101,-2317.71703163,0.00013,2]
[337582095,1725856232112,-8969.12578278,0.00013,2]
[337582117,1725856237615,-161.55,0.00012888,2]
[337582119,1725856237625,-1000.0,0.00012931,2]
[337582120,1725856237635,-19805.82444402,0.00013,2]
[337582121,1725856237647,-664.7658,0.00013,2]
[337582122,1725856237658,-2388.94041669,0.00013,2]
[337582123,1725856237671,-1001.33544001,0.00013,2]
[337582124,1725856237682,-2894.2789726,0.00013,2]
[337582125,1725856237693,-3191.91196331,0.00013,2]
[337582126,1725856237709,-1079.19611686,0.00013,2]
[337582127,1725856237720,-635.55978407,0.00013,2]
[337582128,1725856237731,-9777.40127067,0.00013,2]
[337582129,1725856237743,-286511.77943143,0.00013,2]
[337582130,1725856237754,-394.14575585,0.00013,2]
[337582131,1725856237766,-10231.82958382,0.00013,2]
[337582132,1725856237782,-1013.63400006,0.00013,2]
[337582133,1725856237926,-77946.83696619,0.00013,2]
[337582134,1725856237944,-3876.89018452,0.00013,2]
[337582135,1725856237956,-4474.506193,0.00013,2]
[337582136,1725856237968,-965.47893929,0.00013,2]
[337582137,1725856237980,-884.28010879,0.00013,2]
[337582138,1725856237992,-2526.49146032,0.00013,2]
[337582139,1725856238004,-764640.13984783,0.00013,2]
[337582140,1725856238016,-1507.57772365,0.00013,2]
[337582141,1725856238028,-435.35854429,0.00013,2]
[337582142,1725856238040,-48214.29058962,0.00013,2]
[337582143,1725856238051,-57499.99999999,0.00013,2]
[337582144,1725856238064,-3146.7938,0.00013,2]
[337582145,1725856238082,-2939.34453431,0.00013,2]
[337582146,1725856238094,-21980.50124176,0.00013,2]
[337582147,1725856238106,-20046.88647575,0.00013,2]
[337582150,1725856238118,-1921.64848006,0.00013,2]
[337582152,1725856238131,-1698.03970922,0.00013,2]
[337582153,1725856238142,-9741.04635897,0.00013,2]
[337582154,1725856238154,-775.61553959,0.00013,2]
[337582156,1725856238166,-1919.49092263,0.00013,2]
[337582157,1725856238178,-380.0,0.00013,2]
[337582159,1725856238189,-1107.2408442,0.00013,2]
[337582161,1725856238201,-19177.27197511,0.00013,2]
[337582163,1725856238212,-688.49352069,0.00013,2]
[337582164,1725856238224,-297.14887559,0.00013,2]
[337582166,1725856238236,-4577.31606324,0.00013,2]
[337582223,1725856242060,-1942.37721319,0.00013,2]
[337582224,1725856242074,-828.75769103,0.00013,2]
[337582225,1725856242085,-9096.64373114,0.00013,2]
[337582226,1725856242096,-8947.21879473,0.00013,2]
[337582227,1725856242107,-8943.78386462,0.00013,2]
[337582228,1725856242119,-8776.54866152,0.00013,2]
[337582229,1725856242129,-587.78772417,0.00013,2]
[337582230,1725856242139,-167.49464189,0.00013,2]
[337582231,1725856242148,-150.72,0.0001309,2]
[337582232,1725856242157,-8037.83786883,0.000131,2]
[337582233,1725856242168,-34540.59218563,0.000131,2]
[337582234,1725856242178,-166.65450824,0.000131,2]
[337582235,1725856242188,-1783.18664996,0.000132,2]
[337582236,1725856242197,-26076.56066673,0.000133,2]
[337582237,1725856242208,-16501.86938764,0.000133,2]
[337582238,1725856242218,-178.7473791,0.000134,2]
[337582239,1725856242227,-1783.18664994,0.00013443,2]
[337582240,1725856242236,-42578.43005437,0.000135,2]
[337582241,1725856242245,-178.74737904,0.0001365,2]
[337582242,1725856242255,-250.0,0.00013676,2]
[337582243,1725856242264,-1783.18664994,0.00013686,2]
[337582244,1725856242273,-289.14,0.00013699,2]
[337582245,1725856242282,-4800.86147283,0.000137,2]
[337582246,1725856242291,-42578.43005437,0.000137,2]
[337582247,1725856242301,-171.93,0.00013732,2]
[337582248,1725856242310,-250.0,0.00013775,2]
[337582249,1725856242319,-7695.25873678,0.0001379,2]
[337582251,1725856242328,-150.72,0.0001379,2]
[337582253,1725856242338,-199140.776337,0.000138,3]
[337582255,1725856242348,-200.01,0.0001382,2]
[337582256,1725856242357,-500.0,0.0001382,2]
[337582257,1725856242366,-250.0,0.0001382,2]
[337582258,1725856242376,-236.49,0.00013859,2]
[337582260,1725856242385,-150.72,0.0001389,2]
[337582261,1725856242395,-178.74737904,0.000139,2]
[337582262,1725856242404,-91365.84046802,0.000139,3]
[337582263,1725856242415,-402.41737293,0.000139,3]
[337582264,1725856242427,-760.11591725,0.000139,3]
[337582265,1725856242439,-401.71205352,0.000139,3]
[337582266,1725856242450,-3333.99104239,0.000139,3]
[337582269,1725856242460,-964.35546878,0.000139,3]
[337582270,1725856242471,-281.186742,0.000139,3]
[337582271,1725856242481,-505.2624392,0.000139,3]
[337582272,1725856242492,-752.06647049,0.000139,3]
[337582273,1725856242502,-1600.65,0.000139,3]
[337582275,1725856242513,-39212.85223734,0.000139,3]
[337582277,1725856242524,-31971.56757775,0.000139,3]
[337582279,1725856242536,-5198.16634652,0.000139,3]
[337582280,1725856242547,-114874.16985181,0.000139,3]
[337582281,1725856242556,-42578.43005437,0.000139,2]
[337582282,1725856242565,-1880.38576338,0.000139,2]
[337582283,1725856242574,-1783.18664994,0.00013929,2]
[337582284,1725856242584,-166.65450824,0.00014,2]
[337582285,1725856242593,-150.72,0.0001409,2]
[337582286,1725856242602,-42578.43005437,0.000141,2]
[337582287,1725856242612,-178.74737904,0.0001415,2]
[337582288,1725856242623,-387.44,0.00014166,2]
[337582289,1725856242634,-1783.18664994,0.00014171,2]
[337582290,1725856242645,-1273.3,0.000142,2]
[337582291,1725856242654,-239.69117,0.00014296,2]
[337582292,1725856242663,-42578.43005437,0.000143,2]
[337582293,1725856242673,-500.0,0.00014342,2]
[337582294,1725856242682,-1000.0,0.00014342,2]
[337582295,1725856242693,-178.74737904,0.000144,2]
[337582296,1725856242702,-1783.18664994,0.00014414,2]
[337582297,1725856242712,-239.69117,0.00014475,2]
[337582298,1725856242722,-42578.43005437,0.000145,2]
[337582299,1725856242733,-184.074628,0.00014521,2]
[337582300,1725856242744,-1000.0,0.00014547,2]
[337582301,1725856242757,-15686.71667018,0.000146,10]
[337582302,1725856242770,-627.627,0.000146,2]
[337582303,1725856242779,-178.74737904,0.0001465,2]
[337582304,1725856242791,-239.69117,0.00014653,2]
[337582305,1725856242800,-1783.18664994,0.00014657,2]
[337582306,1725856242811,-42578.43005437,0.000147,2]
[337582307,1725856242822,-1500.0,0.00014709,2]
[337582308,1725856242831,-1500.0,0.00014729,2]
[337582309,1725856242840,-150.0,0.00014729,2]
[337582310,1725856242849,-150.0,0.00014734,2]
[337582311,1725856242859,-499.99,0.00014734,2]
[337582312,1725856242868,-150.0,0.00014735,2]
[337582313,1725856242877,-1500.0,0.00014736,2]
[337582314,1725856242886,-150.0,0.00014738,2]
[337582315,1725856242896,-150.0,0.00014738,2]
[337582316,1725856242906,-150.0,0.0001474,2]
[337582317,1725856242915,-1500.0,0.00014742,2]
[337582318,1725856242925,-150.0,0.00014742,2]
[337582319,1725856242935,-150.0,0.00014744,2]
[337582320,1725856242944,-150.0,0.00014745,2]
[337582321,1725856242954,-150.0,0.00014746,2]
[337582322,1725856242964,-150.0,0.00014747,2]
[337582323,1725856242973,-150.0,0.00014748,2]
[337582324,1725856242982,-300.0,0.00014749,2]
[337582325,1725856242992,-150.0,0.00014751,2]
[337582326,1725856243001,-150.0,0.00014752,2]
[337582327,1725856243010,-150.0,0.00014752,2]
[337582329,1725856243020,-150.0,0.00014754,2]
[337582330,1725856243029,-150.0,0.0001476,2]
[337582331,1725856243038,-150.0,0.00014766,2]
[337582332,1725856243047,-150.0,0.00014768,2]
[337582333,1725856243056,-150.0,0.0001477,2]
[337582334,1725856243067,-150.0,0.00014771,2]
[337582335,1725856243078,-169.51774623,0.00014774,2]
[337582336,1725856243087,-284.02316336,0.00014774,2]
[337582337,1725856243097,-150.0,0.00014776,2]
[337582339,1725856243106,-150.0,0.0001478,2]
[337582340,1725856243115,-150.0,0.0001478,2]
[337582341,1725856243125,-150.0,0.0001478,2]
[337582342,1725856243134,-150.0,0.00014785,2]
[337582343,1725856243144,-150.0,0.00014785,2]
[337582344,1725856243154,-150.0,0.00014786,2]
[337582345,1725856243163,-150.0,0.00014786,2]
[337582346,1725856243172,-224.99,0.00014787,2]
[337582347,1725856243181,-16924.6251,0.0001479,2]
[337582348,1725856243190,-5843.3131,0.0001479,2]
[337582349,1725856243199,-150.72,0.00014794,2]
[337582350,1725856243208,-150.0,0.00014795,2]
[337582351,1725856243217,-150.0,0.00014796,2]
[337582352,1725856243226,-150.0,0.000148,2]
[337582353,1725856243236,-150.0,0.00014801,2]
[337582354,1725856243245,-150.0,0.00014802,2]
[337582355,1725856243254,-150.0,0.00014804,2]
[337582356,1725856243264,-28784.187,0.00014804,2]
[337582357,1725856243273,-150.0,0.00014805,2]
[337582358,1725856243282,-150.0,0.00014805,2]
[337582359,1725856243291,-150.0,0.00014806,2]
[337582360,1725856243300,-1500.0,0.0001481,2]
[337582361,1725856243310,-150.0,0.00014813,2]
[337582362,1725856243319,-150.0,0.00014816,2]
[337582363,1725856243328,-150.0,0.00014816,2]
[337582364,1725856243338,-150.0,0.00014818,2]
[337582365,1725856243347,-150.0,0.00014823,2]
[337582366,1725856243358,-300.0,0.00014825,2]
[337582367,1725856243369,-150.0,0.00014825,2]
[337582368,1725856243378,-1500.0,0.00014829,2]
[337582369,1725856243388,-1500.0,0.0001483,2]
[337582370,1725856243398,-239.69117,0.00014832,2]
[337582371,1725856243407,-974.06736992,0.00014834,2]
[337582372,1725856243416,-300.0,0.00014834,2]
[337582373,1725856243428,-150.0,0.00014836,2]
[337582374,1725856243437,-1500.0,0.00014841,2]
[337582375,1725856243447,-150.0,0.00014841,2]
[337582376,1725856243456,-150.0,0.00014843,2]
[337582377,1725856243467,-300.0,0.00014844,2]
[337582378,1725856243478,-150.0,0.00014848,2]
[337582379,1725856243488,-150.0,0.00014848,2]
[337582380,1725856243497,-2000.0,0.0001485,2]
[337582381,1725856243506,-982.66303,0.0001485,2]
[337582382,1725856243518,-1628.05088717,0.00014851,2]
[337582383,1725856243530,-150.0,0.00014861,2]
[337582384,1725856243539,-150.0,0.00014862,2]
[337582385,1725856243548,-150.0,0.00014867,2]
[337582386,1725856243559,-500.0,0.00014873,2]
[337582387,1725856243569,-150.0,0.00014873,2]
[337582388,1725856243579,-150.0,0.00014874,2]
[337582389,1725856243589,-150.0,0.00014876,2]
[337582390,1725856243599,-150.0,0.00014877,2]
[337582391,1725856243609,-150.0,0.00014881,2]
[337582392,1725856243620,-150.0,0.00014882,2]
[337582393,1725856243630,-150.0,0.00014884,2]
[337582394,1725856243641,-150.0,0.00014884,2]
[337582395,1725856243652,-150.0,0.00014884,2]
[337582396,1725856243662,-150.0,0.00014885,2]
[337582397,1725856243672,-150.0,0.00014887,2]
[337582398,1725856243682,-300.0,0.00014887,2]
[337582399,1725856243691,-150.0,0.00014887,2]
[337582400,1725856243700,-150.0,0.00014888,2]
[337582401,1725856243709,-350.8682,0.0001489,2]
[337582402,1725856243718,-150.0,0.00014895,2]
[337582403,1725856243728,-150.0,0.00014895,2]
[337582404,1725856243737,-1500.0,0.00014896,2]
[337582405,1725856243747,-188.8060097,0.000149,2]
[337582406,1725856243756,-2610.19,0.000149,2]
[337582407,1725856243766,-324.29653398,0.000149,2]
[337582408,1725856243776,-237.85037377,0.000149,2]
[337582409,1725856243785,-595.63159885,0.000149,2]
[337582410,1725856243795,-178.74737904,0.000149,2]
[337582411,1725856243805,-1783.18664994,0.000149,2]
[337582412,1725856243815,-166.65450824,0.000149,2]
[337582413,1725856243825,-42578.43005437,0.000149,2]
[337582414,1725856243835,-1880.38576338,0.000149,2]
[337582415,1725856243844,-662.0,0.000149,2]
[337582416,1725856243854,-150.0,0.00014903,2]
[337582417,1725856243864,-153.63575951,0.00014903,2]
[337582418,1725856243873,-150.0,0.00014904,2]
[337582419,1725856243883,-150.0,0.00014905,2]
[337582420,1725856243893,-487.03368496,0.00014905,2]
[337582421,1725856243903,-150.0,0.00014907,2]
[337582422,1725856243912,-150.0,0.00014907,2]
[337582423,1725856243922,-300.0,0.00014913,2]
[337582424,1725856243931,-150.0,0.00014919,2]
[337582425,1725856243940,-150.0,0.0001492,2]
[337582426,1725856243951,-150.0,0.0001492,2]
[337582427,1725856243960,-150.0,0.00014922,2]
[337582428,1725856243970,-150.0,0.00014925,2]
[337582429,1725856243980,-500.0,0.00014925,2]
[337582430,1725856243989,-500.0,0.00014925,2]
[337582431,1725856244000,-500.0,0.00014925,2]
[337582432,1725856244011,-500.0,0.00014925,2]
[337582433,1725856244021,-500.0,0.00014925,2]
[337582434,1725856244031,-388.9262,0.00014925,2]
[337582435,1725856244040,-500.0,0.00014925,2]
[337582436,1725856244050,-500.0,0.00014925,2]
[337582437,1725856244060,-500.0,0.00014925,2]
[337582438,1725856244074,-500.0,0.00014925,2]
[337582439,1725856244085,-500.0,0.00014925,2]
[337582440,1725856244095,-500.0,0.00014925,2]
[337582441,1725856244105,-500.0,0.00014925,2]
[337582442,1725856244116,-500.0,0.00014925,2]
[337582443,1725856244126,-512.9282,0.00014925,2]
[337582444,1725856244136,-1500.0,0.00014926,2]
[337582445,1725856244146,-150.0,0.00014926,2]
[337582446,1725856244156,-150.0,0.00014927,2]
[337582447,1725856244166,-150.0,0.00014928,2]
[337582448,1725856244177,-150.0,0.00014931,2]
[337582449,1725856244187,-150.0,0.00014935,2]
[337582450,1725856244198,-150.0,0.00014935,2]
[337582451,1725856244208,-150.0,0.00014937,2]
[337582452,1725856244218,-150.0,0.00014938,2]
[337582453,1725856244228,-300.0,0.00014939,2]
[337582454,1725856244238,-150.0,0.0001494,2]
[337582455,1725856244249,-150.0,0.00014943,2]
[337582456,1725856244259,-150.0,0.00014944,2]
[337582457,1725856244270,-150.0,0.00014951,2]
[337582458,1725856244282,-150.0,0.00014951,2]
[337582459,1725856244291,-47537.8847156,0.00014955,2]
[337582460,1725856244300,-150.0,0.00014961,2]
[337582461,1725856244310,-1500.0,0.00014963,2]
[337582462,1725856244321,-154.38739058,0.00014966,2]
[337582463,1725856244330,-150.0,0.00014967,2]
[337582464,1725856244339,-150.0,0.0001497,2]
[337582465,1725856244348,-150.0,0.00014971,2]
[337582466,1725856244357,-500.0,0.00014973,2]
[337582467,1725856244366,-500.0,0.00014973,2]
[337582468,1725856244376,-530.34792501,0.00014973,2]
[337582469,1725856244385,-150.0,0.0001498,2]
[337582470,1725856244394,-150.72,0.0001498,2]
[337582471,1725856244403,-150.0,0.00014985,2]
[337582472,1725856244412,-150.0,0.00014985,2]
[337582473,1725856244421,-150.0,0.00014989,2]
[337582474,1725856244430,-12242.23455189,0.00014989,2]
[337582475,1725856244439,-52151.80261722,0.00014989,2]
[337582476,1725856244449,-4216.8887771,0.0001499,2]
[337582477,1725856244458,-3259.7286695,0.0001499,2]
[337582478,1725856244467,-2302.5685619,0.0001499,2]
[337582479,1725856244477,-1345.4084543,0.0001499,2]
[337582480,1725856244486,-388.2483467,0.0001499,2]
[337582481,1725856244495,-150.72,0.0001499,2]
[337582482,1725856244504,-150.72,0.0001499,2]
[337582483,1725856244513,-150.72,0.0001499,2]
[337582484,1725856244522,-150.72,0.0001499,2]
[337582485,1725856244533,-150.72,0.0001499,2]
[337582486,1725856244542,-150.72,0.0001499,2]
[337582487,1725856244551,-150.72,0.0001499,2]
[337582488,1725856244560,-150.72,0.0001499,2]
[337582489,1725856244570,-150.72,0.0001499,2]
[337582490,1725856244579,-150.72,0.0001499,2]
[337582491,1725856244587,-150.72,0.0001499,2]
[337582492,1725856244597,-150.72,0.0001499,2]
[337582493,1725856244606,-150.72,0.0001499,2]
[337582494,1725856244615,-150.72,0.0001499,2]
[337582495,1725856244624,-150.72,0.0001499,2]
[337582496,1725856244634,-150.72,0.0001499,2]